fUSD/lending_fUSD_20250811
["ID","MTS","AMOUNT","RATE_DAILY","PERIOD"]
[378483739,1754883051031,-1005.9,0.00019,2]
[378483958,1754883140891,361.538372,0.00017965,2]
[378483986,1754883210630,173.33,0.00017954,2]
[378483987,1754883211571,2329.15,0.00017947,2]
[378484000,1754883233608,22272.26,0.00017924,2]
[378484021,1754883278141,343.96057,0.00017965,2]
[378484058,1754883418483,1000.0,0.0001782,2]
[378484083,1754883519764,180.64718738,0.00017955,2]
[378484098,1754883581620,166.89,0.00017812,2]
[378484107,1754883616410,505.0,0.00017624,2]
[378484144,1754883684776,150.0,0.00017664,2]
[378484181,1754883835352,180.64718737,0.00017949,2]
[378484188,1754883855652,514.0,0.00017624,2]
[378484193,1754883867788,1122.0,0.00015,6]
[378484217,1754883895130,153.21,0.00017798,2]
[378484221,1754883906658,150.0,0.00017088,2]
[378484222,1754883906715,150.0,0.00017467,2]
[378484223,1754883906787,150.0,0.00017847,2]
[378484224,1754883907049,150.0,0.00017088,2]
[378484225,1754883907094,150.0,0.00017359,2]
[378484226,1754883907198,150.0,0.0001763,2]
[378484227,1754883907422,150.0,0.00017901,2]
[378484232,1754883910673,150.0,0.00017088,2]
[378484234,1754883913867,150.00000001,0.00017088,2]
[378484235,1754883913972,150.0,0.00017088,2]
[378484236,1754883915195,269.67,0.00017764,2]
[378484239,1754883918895,150.0,0.00017088,2]
[378484246,1754883923696,150.0,0.00017088,2]
[378484271,1754883964113,631.82594341,0.00030136,120]
[378484290,1754883984856,150.0,0.00017938,2]
[378484351,1754884080442,230.08,0.00013699,2]
[378484353,1754884082152,2500.0,0.00017174,2]
[378484354,1754884082986,1000.0,0.00017174,5]
[378484358,1754884084422,300.0,0.00015068,2]
[378484359,1754884085122,300.0,0.00015068,2]
[378484377,1754884107512,944.58,0.00017722,2]
[378484413,1754884139025,180.64718737,0.00017945,2]
[378484460,1754884197302,171380.0,0.0003,120]
[378484491,1754884232279,-150.0,0.00018037,2]
[378484492,1754884232289,-150.0,0.00018037,2]
[378484493,1754884232299,-150.0,0.00018037,2]
[378484494,1754884232309,-250.0,0.00018041,2]
[378484495,1754884232322,-301.00551465,0.00018045,2]
[378484496,1754884232332,-500.0,0.00018045,2]
[378484497,1754884232342,-151.0,0.00018045,2]
[378484498,1754884232351,-541.34445954,0.00018045,2]
[378484499,1754884232361,-1200.0,0.00018046,2]
[378484500,1754884232370,-300.0,0.00018046,2]
[378484501,1754884232380,-659.0,0.00018047,2]
[378484502,1754884232389,-300.0,0.00018047,2]
[378484503,1754884232399,-300.0,0.00018047,2]
[378484504,1754884232409,-1707.54881935,0.00018049,2]
[378484505,1754884232419,-160.0,0.00018049,2]
[378484506,1754884232429,-231.28369723,0.00018049,2]
[378484507,1754884232438,-3200.0,0.00018054,2]
[378484508,1754884232448,-23900.0,0.00018056,2]
[378484509,1754884232457,-150.0,0.0001812,2]
[378484510,1754884232470,-150.0,0.00018173,2]
[378484511,1754884232480,-150.0,0.00018227,2]
[378484512,1754884232489,-168.13,0.0001836,2]
[378484513,1754884232499,-150.0,0.00018444,2]
[378484514,1754884232511,-153.21,0.00018465,2]
[378484515,1754884232525,-418.22,0.00018513,2]
[378484517,1754884232535,-150.0,0.00018607,2]
[378484519,1754884232545,-168.0,0.0001861,2]
[378484521,1754884232554,-447.85968092,0.00018636,2]
[378484523,1754884232563,-269.67,0.00018652,2]
[378484525,1754884232575,-150.0,0.00018667,2]
[378484528,1754884232584,-1514.58798489,0.000187,2]
[378484530,1754884232594,-150.0,0.00018715,2]
[378484532,1754884232604,-850.0,0.0001875,2]
[378484534,1754884232614,-153.47590692,0.00018751,2]
[378484536,1754884232623,-166.0075688,0.00018751,2]
[378484538,1754884232633,-602.34634899,0.00018751,2]
[378484540,1754884232643,-1188.70252489,0.00018751,2]
[378484542,1754884232653,-147.76781816,0.00018752,2]
[378484553,1754884232743,-48.66498869,0.00018752,2]
[378484554,1754884232752,-150.0,0.00018757,2]
[378484556,1754884232762,-153.47590687,0.00018762,2]
[378484558,1754884232771,-838.29465127,0.00018768,2]
[378484574,1754884233089,-350.40787361,0.00018768,2]
[378484575,1754884233099,-150.0,0.00018771,2]
[378484576,1754884233109,-299.88807929,0.00018773,2]
[378484946,1754884238098,-0.17192071,0.00018773,2]
[378484947,1754884238108,-153.47590687,0.00018774,2]
[378484948,1754884238117,-1188.70252488,0.00018784,2]
[378484949,1754884238127,-153.47590687,0.00018785,2]
[378484950,1754884238136,-1751.77654811,0.0001879,2]
[378484951,1754884238145,-153.47590687,0.00018797,2]
[378484952,1754884238155,-183.99151767,0.000188,2]
[378484953,1754884238164,-1188.70252488,0.00018801,2]
[378484954,1754884238174,-153.47590687,0.00018808,2]
[378484955,1754884238183,-309.83456,0.0001881,2]
[378484956,1754884238192,-309.83456,0.0001881,2]
[378484957,1754884238202,-309.83457,0.0001881,2]
[378484958,1754884238211,-1188.70252488,0.00018817,2]
[378484959,1754884238220,-153.47590687,0.0001882,2]
[378484960,1754884238230,-166.00756879,0.00018826,2]
[378484961,1754884238239,-153.47590687,0.00018831,2]
[378484962,1754884238249,-1188.70252488,0.00018834,2]
[378484963,1754884238258,-153.47590687,0.00018843,2]
[378484964,1754884238268,-166.55887001,0.0001885,2]
[378484965,1754884238278,-500.0,0.0001885,2]
[378484966,1754884238288,-224.40426084,0.0001885,2]
[378484967,1754884238297,-500.0,0.0001885,2]
[378484968,1754884238307,-500.31814004,0.0001885,2]
[378484969,1754884238316,-400.0,0.0001885,2]
[378484970,1754884238326,-400.0,0.0001885,2]
[378484971,1754884238336,-400.0,0.0001885,2]
[378484972,1754884238345,-400.0,0.0001885,2]
[378484973,1754884238354,-176.9363376,0.0001885,2]
[378484974,1754884238367,-276.73483134,0.0001885,2]
[378484975,1754884238376,-400.0,0.0001885,2]
[378484976,1754884238385,-405.67339013,0.0001885,2]
[378484977,1754884238395,-467.42,0.0001885,2]
[378484978,1754884238404,-270.92459769,0.0001885,2]
[378484979,1754884238415,-129.07540231,0.0001885,2]
[378484980,1754884238424,-400.0,0.0001885,2]
[378484981,1754884238434,-456.69,0.0001885,2]
[378484982,1754884238443,-404.26399906,0.0001885,2]
[378484983,1754884238453,-400.0,0.0001885,2]
[378484984,1754884238464,-429.4,0.0001885,2]
[378484985,1754884238474,-409.12,0.0001885,2]
[378484986,1754884238483,-778.33,0.0001885,2]
[378484987,1754884238493,-400.0,0.0001885,2]
[378484988,1754884238503,-400.0,0.0001885,2]
[378484989,1754884238512,-400.0,0.0001885,2]
[378484990,1754884238522,-400.0,0.0001885,2]
[378484991,1754884238532,-806.24,0.0001885,2]
[378484992,1754884238542,-437.69,0.0001885,2]
[378484993,1754884238551,-413.17130291,0.0001885,2]
[378484994,1754884238561,-400.0,0.0001885,2]
[378484995,1754884238570,-400.0,0.0001885,2]
[378484996,1754884238580,-421.42,0.0001885,2]
[378484997,1754884238590,-400.0,0.0001885,2]
[378484998,1754884238600,-400.0,0.0001885,2]
[378484999,1754884238610,-427.68242627,0.0001885,2]
[378485000,1754884238619,-712.1,0.0001885,2]
[378485001,1754884238628,-435.63740966,0.0001885,2]
[378485002,1754884238639,-644.9,0.0001885,2]
[378485003,1754884238653,-400.0,0.0001885,2]
[378485004,1754884238663,-400.0,0.0001885,2]
[378485005,1754884238673,-417.90964646,0.0001885,2]
[378485007,1754884238683,-400.0,0.0001885,2]
[378485009,1754884238693,-404.96504553,0.0001885,2]
[378485012,1754884238704,-400.0,0.0001885,2]
[378485013,1754884238713,-400.0,0.0001885,2]
[378485015,1754884238723,-793.8,0.0001885,2]
[378485017,1754884238732,-404.79003473,0.0001885,2]
[378485019,1754884238742,-398.61487412,0.0001885,2]
[378485021,1754884238751,-400.0,0.0001885,2]
[378485024,1754884238761,-713.06,0.0001885,2]
[378485027,1754884238771,-400.0,0.0001885,2]
[378485030,1754884238780,-402.61739546,0.0001885,2]
[378485032,1754884238791,-857.89,0.0001885,2]
[378485035,1754884238801,-400.0,0.0001885,2]
[378485037,1754884238810,-400.0,0.0001885,2]
[378485038,1754884238819,-421.73195507,0.0001885,2]
[378485041,1754884238830,-619.9,0.0001885,2]
[378485043,1754884238839,-400.0,0.0001885,2]
[378485044,1754884238849,-426.76,0.0001885,2]
[378485047,1754884238859,-400.0,0.0001885,2]
[378485049,1754884238869,-402.77,0.0001885,2]
[378485051,1754884238879,-1010.25,0.0001885,2]
[378485053,1754884238889,-780.5,0.0001885,2]
[378485055,1754884238901,-400.0,0.0001885,2]
[378485056,1754884238910,-400.0,0.0001885,2]
[378485058,1754884238919,-400.0,0.0001885,2]
[378485061,1754884238929,-628.12,0.0001885,2]
[378485063,1754884238939,-400.0,0.0001885,2]
[378485065,1754884238948,-402.87478159,0.0001885,2]
[378485067,1754884238958,-400.0,0.0001885,2]
[378485069,1754884238967,-1352.1,0.0001885,2]
[378485071,1754884238977,-400.0,0.0001885,2]
[378485073,1754884238986,-367.56946719,0.0001885,2]
[378485075,1754884238996,-283.34916505,0.0001885,2]
[378485077,1754884239005,-403.2774582,0.0001885,2]
[378485079,1754884239015,-400.0,0.0001885,2]
[378485081,1754884239024,-400.0,0.0001885,2]
[378485083,1754884239033,-416.09198416,0.0001885,2]
[378485085,1754884239043,-400.0,0.0001885,2]
[378485087,1754884239052,-1214.3,0.0001885,2]
[378485089,1754884239061,-400.0,0.0001885,2]
[378485091,1754884239071,-400.0,0.0001885,2]
[378485093,1754884239081,-458.65217434,0.0001885,2]
[378485095,1754884239090,-417.56,0.0001885,2]
[378485097,1754884239099,-58.89227167,0.0001885,2]
[378485253,1754884240604,-1513.22092999,0.00018751,2]
[378485255,1754884240614,-341.10772833,0.0001885,2]
[378485257,1754884240625,-400.0,0.0001885,2]
[378485259,1754884240634,-999.62,0.0001885,2]
[378485262,1754884240643,-400.0,0.0001885,2]
[378485264,1754884240653,-400.0,0.0001885,2]
[378485266,1754884240662,-400.0,0.0001885,2]
[378485268,1754884240672,-1172.57,0.0001885,2]
[378485270,1754884240681,-470.2,0.0001885,2]
[378485272,1754884240692,-4.42218192,0.0001885,2]
[378485274,1754884240703,-663.98781808,0.0001885,2]
[378485276,1754884240712,-823.67,0.0001885,2]
[378485278,1754884240721,-400.0,0.0001885,2]
[378485280,1754884240731,-400.0,0.0001885,2]
[378485282,1754884240740,-400.0,0.0001885,2]
[378485283,1754884240750,-511.38,0.0001885,2]
[378485284,1754884240759,-400.0,0.0001885,2]
[378485285,1754884240768,-400.0,0.0001885,2]
[378485286,1754884240777,-502.79,0.0001885,2]
[378485287,1754884240787,-400.0,0.0001885,2]
[378485288,1754884240796,-400.0,0.0001885,2]
[378485289,1754884240806,-400.0,0.0001885,2]
[378485290,1754884240818,-665.72,0.0001885,2]
[378485291,1754884240828,-403.34544017,0.0001885,2]
[378485292,1754884240837,-400.0,0.0001885,2]
[378485293,1754884240848,-1182.86,0.0001885,2]
[378485294,1754884240858,-429.35667259,0.0001885,2]
[378485295,1754884240867,-400.0,0.0001885,2]
[378485296,1754884240876,-829.84,0.0001885,2]
[378485297,1754884240886,-400.0,0.0001885,2]
[378485298,1754884240900,-400.0,0.0001885,2]
[378485299,1754884240910,-400.0,0.0001885,2]
[378485300,1754884240919,-814.0,0.0001885,2]
[378485301,1754884240929,-423.92,0.0001885,2]
[378485302,1754884240939,-404.49209619,0.0001885,2]
[378485303,1754884240948,-404.02463376,0.0001885,2]
[378485304,1754884240958,-418.73754254,0.0001885,2]
[378485306,1754884240969,-400.0,0.0001885,2]
[378485308,1754884240978,-400.0,0.0001885,2]
[378485310,1754884240988,-3925.88,0.0001885,2]
[378485312,1754884240997,-400.0,0.0001885,2]
[378485314,1754884241006,-400.0,0.0001885,2]
[378485316,1754884241015,-400.0,0.0001885,2]
[378485318,1754884241025,-400.0,0.0001885,2]
[378485321,1754884241036,-402.85504396,0.0001885,2]
[378485322,1754884241045,-400.0,0.0001885,2]
[378485324,1754884241055,-635.85,0.0001885,2]
[378485326,1754884241064,-424.82,0.0001885,2]
[378485328,1754884241074,-411.3408986,0.0001885,2]
[378485330,1754884241084,-400.0,0.0001885,2]
[378485332,1754884241094,-819.51,0.0001885,2]
[378485334,1754884241104,-400.0,0.0001885,2]
[378485336,1754884241114,-400.0,0.0001885,2]
[378485338,1754884241124,-400.0,0.0001885,2]
[378485341,1754884241134,-400.0,0.0001885,2]
[378485342,1754884241143,-667.43,0.0001885,2]
[378485344,1754884241153,-400.0,0.0001885,2]
[378485346,1754884241162,-1000.0,0.0001885,2]
[378485348,1754884241171,-400.0,0.0001885,2]
[378485350,1754884241181,-1461.38,0.0001885,2]
[378485352,1754884241190,-1623.99,0.0001885,2]
[378485354,1754884241199,-400.0,0.0001885,2]
[378485356,1754884241208,-178.24366534,0.0001885,2]
[378485358,1754884241218,-597.43924334,0.0001885,2]
[378485360,1754884241227,-400.0,0.0001885,2]
[378485362,1754884241236,-403.97807194,0.0001885,2]
[378485365,1754884241246,-400.0,0.0001885,2]
[378485366,1754884241255,-582.49,0.0001885,2]
[378485368,1754884241265,-400.0,0.0001885,2]
[378485370,1754884241274,-400.0,0.0001885,2]
[378485373,1754884241284,-400.0,0.0001885,2]
[378485374,1754884241294,-400.0,0.0001885,2]
[378485376,1754884241303,-988.67,0.0001885,2]
[378485378,1754884241313,-625.58,0.0001885,2]
[378485380,1754884241323,-1841.0,0.0001885,2]
[378485382,1754884241334,-400.0,0.0001885,2]
[378485384,1754884241344,-400.0,0.0001885,2]
[378485386,1754884241354,-400.0,0.0001885,2]
[378485388,1754884241364,-402.1240455,0.0001885,2]
[378485390,1754884241373,-1384.53,0.0001885,2]
[378485392,1754884241382,-400.0,0.0001885,2]
[378485394,1754884241392,-400.0,0.0001885,2]
[378485396,1754884241401,-441.56,0.0001885,2]
[378485398,1754884241411,-1585.99,0.0001885,2]
[378485400,1754884241420,-400.0,0.0001885,2]
[378485402,1754884241429,-740.77,0.0001885,2]
[378485404,1754884241439,-400.0,0.0001885,2]
[378485406,1754884241448,-400.0,0.0001885,2]
[378485408,1754884241458,-327.347972,0.0001885,2]
[378485410,1754884241467,-572.309271,0.0001885,2]
[378485412,1754884241476,-400.0,0.0001885,2]
[378485414,1754884241486,-400.0,0.0001885,2]
[378485416,1754884241495,-764.1,0.0001885,2]
[378485418,1754884241505,-1009.37,0.0001885,2]
[378485420,1754884241514,-549.47,0.0001885,2]
[378485422,1754884241524,-1188.70252488,0.0001885,2]
[378485424,1754884241533,-302.57,0.00018851,2]
[378485426,1754884241543,-379.70330516,0.00018851,2]
[378485428,1754884241552,-400.0,0.00018851,2]
[378485430,1754884241561,-400.0,0.00018851,2]
[378485432,1754884241570,-400.0,0.00018851,2]
[378485434,1754884241581,-400.0,0.00018851,2]
[378485436,1754884241590,-400.0,0.00018851,2]
[378485438,1754884241600,-400.0,0.00018851,2]
[378485440,1754884241609,-400.0,0.00018851,2]
[378485442,1754884241619,-400.0,0.00018851,2]
[378485444,1754884241629,-400.0,0.00018851,2]
[378485446,1754884241639,-500.0,0.00018851,2]
[378485448,1754884241649,-400.0,0.00018851,2]
[378485450,1754884241660,-400.0,0.00018851,2]
[378485452,1754884241670,-400.0,0.00018851,2]
[378485454,1754884241679,-400.0,0.00018851,2]
[378485456,1754884241689,-400.0,0.00018851,2]
[378485458,1754884241699,-268.76146141,0.00018851,2]
[378485460,1754884241708,-400.0,0.00018851,2]
[378485462,1754884241718,-501.92611367,0.00018851,2]
[378485464,1754884241727,-400.0,0.00018851,2]
[378485466,1754884241737,-403.29,0.00018851,2]
[378485468,1754884241746,-400.0,0.00018851,2]
[378485470,1754884241755,-400.0,0.00018851,2]
[378485472,1754884241766,-400.0,0.00018851,2]
[378485474,1754884241775,-400.0,0.00018851,2]
[378485476,1754884241784,-627.83,0.00018851,2]
[378485478,1754884241794,-201.73464664,0.00018851,2]
[378485480,1754884241804,-400.0,0.00018851,2]
[378485482,1754884241813,-400.0,0.00018851,2]
[378485483,1754884241824,-403.11143765,0.00018851,2]
[378485485,1754884241834,-402.31637081,0.00018851,2]
[378485487,1754884241843,-404.26245733,0.00018851,2]
[378485489,1754884241852,-400.0,0.00018851,2]
[378485491,1754884241862,-587.73,0.00018851,2]
[378485493,1754884241871,-400.0,0.00018851,2]
[378485495,1754884241880,-478.46,0.00018851,2]
[378485497,1754884241891,-400.0,0.00018851,2]
[378485499,1754884241903,-400.0,0.00018851,2]
[378485501,1754884241912,-400.0,0.00018851,2]
[378485503,1754884241921,-400.0,0.00018851,2]
[378485505,1754884241931,-400.0,0.00018851,2]
[378485507,1754884241940,-400.0,0.00018851,2]
[378485509,1754884241949,-578.65063624,0.00018851,2]
[378485511,1754884241958,-400.0,0.00018851,2]
[378485513,1754884241969,-564.9,0.00018851,2]
[378485515,1754884241979,-400.0,0.00018851,2]
[378485517,1754884241987,-403.3911006,0.00018851,2]
[378485519,1754884241996,-461.16,0.00018851,2]
[378485521,1754884242006,-400.0,0.00018851,2]
[378485523,1754884242016,-400.0,0.00018851,2]
[378485525,1754884242025,-400.0,0.00018851,2]
[378485527,1754884242034,-508.3,0.00018851,2]
[378485529,1754884242043,-400.0,0.00018851,2]
[378485531,1754884242053,-400.0,0.00018851,2]
[378485533,1754884242062,-400.0,0.00018851,2]
[378485535,1754884242071,-504.57,0.00018851,2]
[378485537,1754884242082,-400.0,0.00018851,2]
[378485538,1754884242092,-400.0,0.00018851,2]
[378485540,1754884242101,-400.0,0.00018851,2]
[378485542,1754884242111,-406.0345764,0.00018851,2]
[378485544,1754884242120,-400.0,0.00018851,2]
[378485547,1754884242130,-419.65,0.00018851,2]
[378485549,1754884242140,-400.0,0.00018851,2]
[378485551,1754884242150,-400.0,0.00018851,2]
[378485552,1754884242159,-400.0,0.00018851,2]
[378485554,1754884242169,-400.0,0.00018851,2]
[378485556,1754884242179,-544.12,0.00018851,2]
[378485559,1754884242188,-400.0,0.00018851,2]
[378485560,1754884242198,-400.0,0.00018851,2]
[378485562,1754884242208,-400.0,0.00018851,2]
[378485564,1754884242217,-402.69795051,0.00018851,2]
[378485566,1754884242226,-400.0,0.00018851,2]
[378485568,1754884242235,-440.51,0.00018851,2]
[378485570,1754884242244,-403.57631305,0.00018851,2]
[378485572,1754884242254,-402.75334865,0.00018851,2]
[378485574,1754884242263,-400.0,0.00018851,2]
[378485576,1754884242272,-402.7778793,0.00018851,2]
[378485578,1754884242282,-1175.41,0.00018851,2]
[378485580,1754884242290,-400.0,0.00018851,2]
[378485582,1754884242300,-400.0,0.00018851,2]
[378485584,1754884242309,-712.01,0.00018851,2]
[378485586,1754884242319,-760.77,0.00018851,2]
[378485588,1754884242328,-472.56541293,0.00018851,2]
[378485590,1754884242337,-400.0,0.00018851,2]
[378485592,1754884242347,-400.0,0.00018851,2]
[378485594,1754884242356,-400.0,0.00018851,2]
[378485596,1754884242366,-400.0,0.00018851,2]
[378485598,1754884242375,-404.75014074,0.00018851,2]
[378485600,1754884242384,-405.1640515,0.00018851,2]
[378485602,1754884242394,-400.0,0.00018851,2]
[378485604,1754884242405,-400.0,0.00018851,2]
[378485606,1754884242414,-435.86,0.00018851,2]
[378485608,1754884242424,-400.0,0.00018851,2]
[378485610,1754884242434,-400.0,0.00018851,2]
[378485612,1754884242443,-458.56,0.00018851,2]
[378485614,1754884242452,-400.0,0.00018851,2]
[378485616,1754884242462,-507.96,0.00018851,2]
[378485618,1754884242472,-1000.0,0.00018851,2]
[378485620,1754884242481,-400.0,0.00018851,2]
[378485622,1754884242491,-400.0,0.00018851,2]
[378485624,1754884242502,-405.86,0.00018851,2]
[378485626,1754884242512,-400.0,0.00018851,2]
[378485628,1754884242522,-400.0,0.00018851,2]
[378485630,1754884242532,-460.54,0.00018851,2]
[378485632,1754884242543,-966.65,0.00018851,2]
[378485634,1754884242552,-511.7,0.00018851,2]
[378485636,1754884242562,-490.04,0.00018851,2]
[378485638,1754884242573,-372.42943696,0.00018851,2]
[378485640,1754884242583,-400.0,0.00018851,2]
[378485642,1754884242592,-693.08,0.00018851,2]
[378485644,1754884242601,-400.0,0.00018851,2]
[378485646,1754884242611,-542.58,0.00018851,2]
[378485648,1754884242620,-473.09,0.00018851,2]
[378485650,1754884242629,-2048.51,0.00018851,2]
[378485652,1754884242639,-400.0,0.00018851,2]
[378485654,1754884242648,-400.0,0.00018851,2]
[378485656,1754884242658,-403.75887159,0.00018851,2]
[378485658,1754884242668,-453.16393731,0.00018851,2]
[378485660,1754884242677,-403.73618737,0.00018851,2]
[378485662,1754884242688,-428.24,0.00018851,2]
[378485664,1754884242698,-401.81064629,0.00018851,2]
[378485666,1754884242708,-400.0,0.00018851,2]
[378485668,1754884242717,-400.0,0.00018851,2]
[378485670,1754884242727,-404.77187722,0.00018851,2]
[378485672,1754884242736,-417.0,0.00018851,2]
[378485674,1754884242746,-464.41,0.00018851,2]
[378485676,1754884242755,-401.02107694,0.00018851,2]
[378485678,1754884242765,-400.0,0.00018851,2]
[378485681,1754884242775,-402.03582961,0.00018851,2]
[378485682,1754884242785,-574.12,0.00018851,2]
[378485685,1754884242795,-400.0,0.00018851,2]
[378485687,1754884242804,-403.16401699,0.00018851,2]
[378485689,1754884242814,-885.69,0.00018851,2]
[378485691,1754884242825,-437.1,0.00018851,2]
[378485693,1754884242834,-400.0,0.00018851,2]
[378485695,1754884242844,-802.16,0.00018851,2]
[378485697,1754884242853,-796.23,0.00018851,2]
[378485699,1754884242863,-400.0,0.00018851,2]
[378485701,1754884242872,-678.46,0.00018851,2]
[378485703,1754884242882,-400.0,0.00018851,2]
[378485705,1754884242893,-400.0,0.00018851,2]
[378485707,1754884242904,-880.67,0.00018851,2]
[378485709,1754884242913,-400.0,0.00018851,2]
[378485711,1754884242923,-506.08,0.00018851,2]
[378485714,1754884242933,-400.0,0.00018851,2]
[378485717,1754884242944,-400.0,0.00018851,2]
[378485720,1754884242953,-741.89,0.00018851,2]
[378485722,1754884242963,-832.07,0.00018851,2]
[378485725,1754884242974,-404.47950347,0.00018851,2]
[378485728,1754884242985,-400.0,0.00018851,2]
[378485731,1754884242994,-400.0,0.00018851,2]
[378485734,1754884243003,-400.0,0.00018851,2]
[378485737,1754884243013,-400.0,0.00018851,2]
[378485739,1754884243022,-661.76,0.00018851,2]
[378485741,1754884243031,-631.0,0.00018851,2]
[378485744,1754884243041,-444.08,0.00018851,2]
[378485746,1754884243051,-400.0,0.00018851,2]
[378485748,1754884243061,-448.44,0.00018851,2]
[378485752,1754884243071,-893.85,0.00018851,2]
[378485755,1754884243082,-418.97,0.00018851,2]
[378485758,1754884243092,-844.42,0.00018851,2]
[378485760,1754884243102,-1037.04,0.00018851,2]
[378485762,1754884243111,-400.0,0.00018851,2]
[378485764,1754884243121,-400.0,0.00018851,2]
[378485766,1754884243132,-400.0,0.00018851,2]
[378485768,1754884243142,-602.21,0.00018851,2]
[378485770,1754884243151,-777.6,0.00018851,2]
[378485772,1754884243161,-400.0,0.00018851,2]
[378485774,1754884243171,-400.0,0.00018851,2]
[378485776,1754884243181,-400.0,0.00018851,2]
[378485778,1754884243190,-674.47,0.00018851,2]
[378485780,1754884243200,-400.0,0.00018851,2]
[378485782,1754884243210,-569.72,0.00018851,2]
[378485784,1754884243219,-469.45,0.00018851,2]
[378485786,1754884243229,-1049.79,0.00018851,2]
[378485788,1754884243239,-593.6,0.00018851,2]
[378485790,1754884243249,-400.0,0.00018851,2]
[378485792,1754884243258,-400.0,0.00018851,2]
[378485794,1754884243268,-400.0,0.00018851,2]
[378485796,1754884243278,-1202.09,0.00018851,2]
[378485798,1754884243287,-1183.32,0.00018851,2]
[378485800,1754884243296,-1171.68,0.00018851,2]
[378485802,1754884243306,-400.0,0.00018851,2]
[378485804,1754884243316,-400.0,0.00018851,2]
[378485806,1754884243326,-400.0,0.00018851,2]
[378485808,1754884243335,-400.0,0.00018851,2]
[378485810,1754884243345,-400.0,0.00018851,2]
[378485812,1754884243354,-400.0,0.00018851,2]
[378485814,1754884243364,-400.0,0.00018851,2]
[378485816,1754884243373,-687.03,0.00018851,2]
[378485818,1754884243383,-400.0,0.00018851,2]
[378485820,1754884243392,-400.0,0.00018851,2]
[378485822,1754884243403,-400.0,0.00018851,2]
[378485824,1754884243412,-510.73,0.00018851,2]
[378485826,1754884243422,-400.0,0.00018851,2]
[378485828,1754884243432,-482.05,0.00018851,2]
[378485830,1754884243441,-448.4,0.00018851,2]
[378485832,1754884243451,-400.0,0.00018851,2]
[378485834,1754884243460,-400.0,0.00018851,2]
[378485836,1754884243470,-486.71,0.00018851,2]
[378485838,1754884243479,-1002.49,0.00018851,2]
[378485840,1754884243489,-400.0,0.00018851,2]
[378485842,1754884243498,-400.0,0.00018851,2]
[378485844,1754884243508,-415.41,0.00018851,2]
[378485846,1754884243517,-400.0,0.00018851,2]
[378485848,1754884243530,-552.347795,0.00018851,2]
[378485850,1754884243539,-400.0,0.00018851,2]
[378485852,1754884243548,-465.71,0.00018851,2]
[378485854,1754884243558,-400.0,0.00018851,2]
[378485856,1754884243567,-400.0,0.00018851,2]
[378485858,1754884243577,-1182.85,0.00018851,2]
[378485860,1754884243587,-400.0,0.00018851,2]
[378485862,1754884243597,-400.0,0.00018851,2]
[378485864,1754884243607,-400.0,0.00018851,2]
[378485866,1754884243616,-983.8,0.00018851,2]
[378485868,1754884243626,-597.26,0.00018851,2]